[Event "Early-Titled-Tuesday-Blitz-October-17-2023"]
[Site "Chess.com"]
[Date "2023.10.17"]
[Round "2"]
[White "Bilan_Danila"]
[Black "js20000"]
[Result "0-1"]
[WhiteElo "2599"]
[BlackElo "2878"]
[TimeControl "180+1"]
[EndTime "8:17:12 PDT"]
[Termination "js20000 won by resignation"]

1. d4 {[%clk 0:03:00.9]} 1... e6 {[%clk 0:02:58.8]} 2. Nf3 {[%clk 0:03:00.1]}
2... c5 {[%clk 0:02:54.8]} 3. e3 {[%clk 0:02:56.8]} 3... b6 {[%clk 0:02:50.8]}
4. Nbd2 {[%clk 0:02:49.7]} 4... Bb7 {[%clk 0:02:49.1]} 5. Bd3 {[%clk 0:02:48.6]}
5... Nf6 {[%clk 0:02:48.2]} 6. O-O {[%clk 0:02:47.3]} 6... Nc6 {[%clk
0:02:48.4]} 7. a3 {[%clk 0:02:25.8]} 7... d5 {[%clk 0:02:47]} 8. b3 {[%clk
0:02:20.2]} 8... Bd6 {[%clk 0:02:46.1]} 9. Bb2 {[%clk 0:02:17]} 9... cxd4 {[%clk
0:02:46]} 10. exd4 {[%clk 0:02:12.4]} 10... O-O {[%clk 0:02:45.8]} 11. Ne5
{[%clk 0:02:11]} 11... Ne7 {[%clk 0:02:38.3]} 12. Re1 {[%clk 0:01:57.8]} 12...
Nf5 {[%clk 0:02:30]} 13. Qf3 {[%clk 0:01:43.5]} 13... Qc8 {[%clk 0:02:27.7]} 14.
g4 {[%clk 0:01:28.3]} 14... Nh4 {[%clk 0:02:27.6]} 15. Qh3 {[%clk 0:01:20.2]}
15... Ng6 {[%clk 0:02:27.4]} 16. Nxg6 {[%clk 0:00:50.7]} 16... hxg6 {[%clk
0:02:26.3]} 17. Nf3 {[%clk 0:00:37.5]} 17... Ba6 {[%clk 0:02:22.3]} 18. Rac1
{[%clk 0:00:25.3]} 18... Bxd3 {[%clk 0:02:17.8]} 19. cxd3 {[%clk 0:00:25.3]}
19... Qd8 {[%clk 0:02:17.9]} 20. Ne5 {[%clk 0:00:19.4]} 20... Rc8 {[%clk
0:02:14.7]} 21. f4 {[%clk 0:00:12.7]} 21... Qe7 {[%clk 0:02:06.2]} 22. b4 {[%clk
0:00:06.8]} 22... Qb7 {[%clk 0:02:00.4]} 23. g5 {[%clk 0:00:04.9]} 23... Nh5
{[%clk 0:01:57.9]} 24. Qf3 {[%clk 0:00:03.3]} 24... Rxc1 {[%clk 0:01:55.4]} 25.
Rxc1 {[%clk 0:00:03.4]} 25... Rc8 {[%clk 0:01:55.9]} 26. Kf2 {[%clk 0:00:01.4]}
26... Kh7 {[%clk 0:01:50]} 27. Rc7 {[%clk 0:00:01.5]} 27... Rxc7 {[%clk
0:01:49.7]} 0-1

[Event "Early-Titled-Tuesday-Blitz-October-17-2023"]
[Site "Chess.com"]
[Date "2023.10.17"]
[Round "2"]
[White "lamomiajunior"]
[Black "ViktoriyaTarasova"]
[Result "1-0"]
[WhiteElo "2730"]
[BlackElo "2384"]
[TimeControl "180+1"]
[EndTime "8:17:13 PDT"]
[Termination "lamomiajunior won on time"]

1. d4 {[%clk 0:03:00.9]} 1... Nf6 {[%clk 0:02:59.4]} 2. c4 {[%clk 0:03:00.8]}
2... e6 {[%clk 0:02:59.7]} 3. Nc3 {[%clk 0:03:01.1]} 3... Bb4 {[%clk 0:02:59.9]}
4. e3 {[%clk 0:03:00]} 4... O-O {[%clk 0:02:58.6]} 5. Bd2 {[%clk 0:03:00.1]}
5... d5 {[%clk 0:02:58.5]} 6. Nf3 {[%clk 0:03:00.5]} 6... b6 {[%clk 0:02:42]} 7.
cxd5 {[%clk 0:03:00.4]} 7... exd5 {[%clk 0:02:41.5]} 8. Rc1 {[%clk 0:03:01.1]}
8... a6 {[%clk 0:02:31.4]} 9. Bd3 {[%clk 0:03:00.2]} 9... Bd6 {[%clk 0:02:31.3]}
10. Ne5 {[%clk 0:02:55.5]} 10... c5 {[%clk 0:02:30.2]} 11. O-O {[%clk
0:02:55.2]} 11... Bb7 {[%clk 0:02:28.9]} 12. f4 {[%clk 0:02:55.1]} 12... Ne4
{[%clk 0:02:22.7]} 13. Ne2 {[%clk 0:02:05.8]} 13... f6 {[%clk 0:02:19.6]} 14.
Nf3 {[%clk 0:02:05.1]} 14... Nd7 {[%clk 0:02:10.3]} 15. Ng3 {[%clk 0:02:05.2]}
15... Nxg3 {[%clk 0:01:54.6]} 16. hxg3 {[%clk 0:02:05.3]} 16... f5 {[%clk
0:01:47.9]} 17. Ne5 {[%clk 0:01:59.5]} 17... g6 {[%clk 0:01:40.9]} 18. g4 {[%clk
0:01:57.5]} 18... Bxe5 {[%clk 0:00:25.8]} 19. fxe5 {[%clk 0:01:51]} 19... Qg5
{[%clk 0:00:16.9]} 20. gxf5 {[%clk 0:01:50.1]} 20... gxf5 {[%clk 0:00:17.5]} 21.
Qe2 {[%clk 0:01:42.2]} 21... Qg4 {[%clk 0:00:01.8]} 22. Rxf5 {[%clk 0:01:34.8]}
1-0

[Event "Early-Titled-Tuesday-Blitz-October-17-2023"]
[Site "Chess.com"]
[Date "2023.10.17"]
[Round "2"]
[White "Airquake"]
[Black "igorkovalenko"]
[Result "1/2-1/2"]
[WhiteElo "2609"]
[BlackElo "2879"]
[TimeControl "180+1"]
[EndTime "8:17:21 PDT"]
[Termination "Game drawn by repetition"]

1. b3 {[%clk 0:03:00.9]} 1... e5 {[%clk 0:02:59.7]} 2. Bb2 {[%clk 0:03:01.8]}
2... Nc6 {[%clk 0:02:59.8]} 3. g3 {[%clk 0:03:02.4]} 3... d5 {[%clk 0:02:59.2]}
4. Bg2 {[%clk 0:03:03.2]} 4... Be6 {[%clk 0:02:59.3]} 5. e3 {[%clk 0:03:03.8]}
5... Qd7 {[%clk 0:02:58.9]} 6. d4 {[%clk 0:03:02.3]} 6... e4 {[%clk 0:02:53.6]}
7. c4 {[%clk 0:03:02.2]} 7... f5 {[%clk 0:02:53]} 8. cxd5 {[%clk 0:03:01]} 8...
Bxd5 {[%clk 0:02:52.8]} 9. Ne2 {[%clk 0:03:01.5]} 9... Nf6 {[%clk 0:02:52.8]}
10. Nbc3 {[%clk 0:03:00.9]} 10... Bf7 {[%clk 0:02:51.4]} 11. O-O {[%clk
0:02:51.6]} 11... Bd6 {[%clk 0:02:44.8]} 12. f3 {[%clk 0:02:50.9]} 12... exf3
{[%clk 0:02:44.4]} 13. Rxf3 {[%clk 0:02:50]} 13... Ne7 {[%clk 0:02:43.7]} 14.
Qd3 {[%clk 0:02:42.5]} 14... O-O {[%clk 0:02:39.1]} 15. Raf1 {[%clk 0:02:38.4]}
15... c6 {[%clk 0:02:38.2]} 16. Bh3 {[%clk 0:02:30.7]} 16... Be6 {[%clk
0:02:37.8]} 17. Nf4 {[%clk 0:02:27.5]} 17... Bxf4 {[%clk 0:02:37.5]} 18. Rxf4
{[%clk 0:02:26.5]} 18... Nfd5 {[%clk 0:02:37.2]} 19. Nxd5 {[%clk 0:02:14.3]}
19... Nxd5 {[%clk 0:02:37.1]} 20. Rxf5 {[%clk 0:01:50.9]} 20... Bxf5 {[%clk
0:02:35.1]} 21. Bxf5 {[%clk 0:01:51]} 21... Rxf5 {[%clk 0:02:34.3]} 22. Rxf5
{[%clk 0:01:32.7]} 22... Nxe3 {[%clk 0:02:34.2]} 23. Rh5 {[%clk 0:01:15]} 23...
g6 {[%clk 0:02:33.9]} 24. Qxe3 {[%clk 0:01:08.9]} 24... gxh5 {[%clk 0:02:33.7]}
25. d5 {[%clk 0:01:02.4]} 25... Qxd5 {[%clk 0:02:32.5]} 26. Qc3 {[%clk
0:01:02.4]} 26... Qd1+ {[%clk 0:02:08.2]} 27. Kg2 {[%clk 0:01:02.4]} 27... Qd5+
{[%clk 0:02:08.4]} 28. Kg1 {[%clk 0:00:58.9]} 28... Kf7 {[%clk 0:02:00.2]} 29.
Qf6+ {[%clk 0:00:55.2]} 29... Ke8 {[%clk 0:02:00.2]} 30. Qh8+ {[%clk 0:00:55.9]}
30... Kd7 {[%clk 0:02:00.4]} 31. Qxa8 {[%clk 0:00:56.5]} 31... Qd1+ {[%clk
0:01:58.3]} 32. Kg2 {[%clk 0:00:48]} 32... Qe2+ {[%clk 0:01:58.3]} 33. Kh3
{[%clk 0:00:45.2]} 33... Qg4+ {[%clk 0:01:58.4]} 34. Kg2 {[%clk 0:00:45.1]}
34... Qe2+ {[%clk 0:01:59.3]} 35. Kh3 {[%clk 0:00:45.6]} 35... Qxb2 {[%clk
0:01:49]} 36. Qxb7+ {[%clk 0:00:45.4]} 36... Kd6 {[%clk 0:01:49.2]} 37. Qxa7
{[%clk 0:00:43.1]} 37... Qf6 {[%clk 0:01:37.4]} 38. Qxh7 {[%clk 0:00:38.3]}
38... Qe6+ {[%clk 0:01:37.2]} 39. Kg2 {[%clk 0:00:38.2]} 39... Qe2+ {[%clk
0:01:37.5]} 40. Kh3 {[%clk 0:00:38.6]} 40... Qg4+ {[%clk 0:01:38.1]} 41. Kg2
{[%clk 0:00:39]} 41... Qe2+ {[%clk 0:01:39]} 42. Kh3 {[%clk 0:00:39.7]} 42...
Qg4+ {[%clk 0:01:39.4]} 43. Kg2 {[%clk 0:00:40.3]} 43... Qe2+ {[%clk 0:01:40.3]}
1/2-1/2

[Event "Early-Titled-Tuesday-Blitz-October-17-2023"]
[Site "Chess.com"]
[Date "2023.10.17"]
[Round "2"]
[White "MFatigue"]
[Black "I_am_Javi"]
[Result "0-1"]
[WhiteElo "2548"]
[BlackElo "2746"]
[TimeControl "180+1"]
[EndTime "8:17:22 PDT"]
[Termination "I_am_Javi won by checkmate"]

1. e4 {[%clk 0:03:00.9]} 1... e5 {[%clk 0:02:55.8]} 2. Nf3 {[%clk 0:03:01.3]}
2... Nc6 {[%clk 0:02:56.1]} 3. d4 {[%clk 0:03:01.9]} 3... exd4 {[%clk
0:02:56.3]} 4. Bc4 {[%clk 0:03:02.7]} 4... g6 {[%clk 0:02:56.8]} 5. Nxd4 {[%clk
0:03:01.6]} 5... Bg7 {[%clk 0:02:56.5]} 6. Nxc6 {[%clk 0:03:01.7]} 6... bxc6
{[%clk 0:02:57.4]} 7. O-O {[%clk 0:03:01.7]} 7... Ne7 {[%clk 0:02:57.7]} 8. Nc3
{[%clk 0:03:01.5]} 8... O-O {[%clk 0:02:58.4]} 9. Bf4 {[%clk 0:02:57.5]} 9... d6
{[%clk 0:02:58.8]} 10. Qd2 {[%clk 0:02:56.8]} 10... Be6 {[%clk 0:02:59.4]} 11.
Bb3 {[%clk 0:02:57.1]} 11... Rb8 {[%clk 0:02:56.8]} 12. Rad1 {[%clk 0:02:53.2]}
12... c5 {[%clk 0:02:56.6]} 13. Bh6 {[%clk 0:02:49.6]} 13... Bxh6 {[%clk
0:02:44.5]} 14. Qxh6 {[%clk 0:02:50.5]} 14... c4 {[%clk 0:02:44.7]} 15. Ba4
{[%clk 0:02:51.1]} 15... Rxb2 {[%clk 0:02:44.2]} 16. Rb1 {[%clk 0:02:46.9]}
16... Qb8 {[%clk 0:02:32.6]} 17. Qg5 {[%clk 0:02:26.5]} 17... f6 {[%clk
0:02:27.7]} 18. Qa5 {[%clk 0:02:20.3]} 18... Qb6 {[%clk 0:02:23.9]} 19. Qxb6
{[%clk 0:02:03.8]} 19... Rxb6 {[%clk 0:02:24.8]} 20. Nb5 {[%clk 0:01:50.5]}
20... Rfb8 {[%clk 0:02:19]} 21. Na3 {[%clk 0:01:48.9]} 21... Kf7 {[%clk
0:02:06.7]} 22. f4 {[%clk 0:01:36]} 22... f5 {[%clk 0:01:47.3]} 23. exf5 {[%clk
0:01:28]} 23... Nxf5 {[%clk 0:01:48.2]} 24. Kf2 {[%clk 0:01:17.2]} 24... d5
{[%clk 0:01:38.3]} 25. c3 {[%clk 0:00:58.6]} 25... h5 {[%clk 0:01:35.3]} 26. Bc2
{[%clk 0:00:54]} 26... c5 {[%clk 0:01:33.9]} 27. g3 {[%clk 0:00:41.9]} 27... Rb2
{[%clk 0:01:24.7]} 28. Kf3 {[%clk 0:00:40.5]} 28... d4 {[%clk 0:01:23.9]} 29.
Bxf5 {[%clk 0:00:39]} 29... gxf5 {[%clk 0:01:23]} 30. Rxb2 {[%clk 0:00:22.3]}
30... Rxb2 {[%clk 0:01:21.8]} 31. Rf2 {[%clk 0:00:23.2]} 31... Bd5# {[%clk
0:01:20.8]} 0-1

[Event "Early-Titled-Tuesday-Blitz-October-17-2023"]
[Site "Chess.com"]
[Date "2023.10.17"]
[Round "2"]
[White "BardArtem"]
[Black "dcremisi"]
[Result "0-1"]
[WhiteElo "2768"]
[BlackElo "2582"]
[TimeControl "180+1"]
[EndTime "8:17:31 PDT"]
[Termination "dcremisi won on time"]

1. e4 {[%clk 0:02:58]} 1... e6 {[%clk 0:03:00]} 2. d4 {[%clk 0:02:56.5]} 2... d5
{[%clk 0:03:00.1]} 3. Nc3 {[%clk 0:02:55.9]} 3... Bb4 {[%clk 0:02:58.9]} 4. Ne2
{[%clk 0:02:54.6]} 4... dxe4 {[%clk 0:02:58.8]} 5. a3 {[%clk 0:02:53.1]} 5...
Be7 {[%clk 0:02:59]} 6. Nxe4 {[%clk 0:02:52.9]} 6... Nd7 {[%clk 0:02:59]} 7.
N2g3 {[%clk 0:02:32.8]} 7... Ngf6 {[%clk 0:02:57.8]} 8. Be3 {[%clk 0:02:27.3]}
8... Nxe4 {[%clk 0:02:56.8]} 9. Nxe4 {[%clk 0:02:28.2]} 9... Nf6 {[%clk
0:02:57.4]} 10. Nxf6+ {[%clk 0:02:26.5]} 10... Bxf6 {[%clk 0:02:57.6]} 11. Qd2
{[%clk 0:02:25.7]} 11... b6 {[%clk 0:02:56.6]} 12. O-O-O {[%clk 0:02:20.5]}
12... Bb7 {[%clk 0:02:56.6]} 13. Bb5+ {[%clk 0:02:20.6]} 13... c6 {[%clk
0:02:55.9]} 14. Be2 {[%clk 0:02:17.7]} 14... O-O {[%clk 0:02:55.6]} 15. Bf3
{[%clk 0:02:12.1]} 15... Qc7 {[%clk 0:02:55.5]} 16. Bf4 {[%clk 0:02:00.6]} 16...
Qd7 {[%clk 0:02:52.5]} 17. g4 {[%clk 0:01:59.9]} 17... Rfd8 {[%clk 0:02:52.2]}
18. Be5 {[%clk 0:01:50]} 18... Bxe5 {[%clk 0:02:28.5]} 19. dxe5 {[%clk
0:01:50.9]} 19... Qxd2+ {[%clk 0:02:26.1]} 20. Rxd2 {[%clk 0:01:51.8]} 20... Kf8
{[%clk 0:02:25.5]} 21. Rhd1 {[%clk 0:01:43]} 21... Rxd2 {[%clk 0:02:25.1]} 22.
Rxd2 {[%clk 0:01:43.7]} 22... Ke7 {[%clk 0:02:11.6]} 23. Rd6 {[%clk 0:01:35.3]}
23... Rc8 {[%clk 0:02:11.6]} 24. Kd2 {[%clk 0:01:30.9]} 24... Rc7 {[%clk
0:02:11]} 25. Ke3 {[%clk 0:01:27.9]} 25... c5 {[%clk 0:02:09.8]} 26. Bxb7 {[%clk
0:00:28.5]} 26... Rxb7 {[%clk 0:02:10.7]} 27. f4 {[%clk 0:00:28.8]} 27... Rd7
{[%clk 0:02:06.8]} 28. Rxd7+ {[%clk 0:00:25]} 28... Kxd7 {[%clk 0:02:07]} 29. f5
{[%clk 0:00:24.6]} 29... g5 {[%clk 0:01:53.8]} 30. fxg6 {[%clk 0:00:15]} 30...
fxg6 {[%clk 0:01:51.6]} 31. Kf4 {[%clk 0:00:15.3]} 31... h6 {[%clk 0:01:51.4]}
32. c4 {[%clk 0:00:07.1]} 32... Kc6 {[%clk 0:01:50.3]} 33. a4 {[%clk 0:00:05.6]}
33... a6 {[%clk 0:01:50.2]} 34. b3 {[%clk 0:00:05.9]} 34... b5 {[%clk
0:01:49.8]} 35. axb5+ {[%clk 0:00:02.3]} 35... axb5 {[%clk 0:01:49.8]} 36. cxb5+
{[%clk 0:00:01.1]} 36... Kxb5 {[%clk 0:01:49.9]} 0-1

[Event "Early-Titled-Tuesday-Blitz-October-17-2023"]
[Site "Chess.com"]
[Date "2023.10.17"]
[Round "2"]
[White "dianamirza"]
[Black "Anton_Demchenko"]
[Result "0-1"]
[WhiteElo "2044"]
[BlackElo "3015"]
[TimeControl "180+1"]
[EndTime "8:17:32 PDT"]
[Termination "Anton_Demchenko won by resignation"]

1. d4 {[%clk 0:02:37.4]} 1... Nf6 {[%clk 0:02:59.6]} 2. Nf3 {[%clk 0:02:37]}
2... d6 {[%clk 0:02:59.7]} 3. c4 {[%clk 0:02:35.9]} 3... Nc6 {[%clk 0:02:59.4]}
4. Nc3 {[%clk 0:02:36.2]} 4... e5 {[%clk 0:02:59.4]} 5. dxe5 {[%clk 0:02:33.1]}
5... dxe5 {[%clk 0:03:00.3]} 6. Qxd8+ {[%clk 0:02:33.1]} 6... Kxd8 {[%clk
0:03:01.2]} 7. Bg5 {[%clk 0:02:31.5]} 7... Be6 {[%clk 0:03:01.4]} 8. e3 {[%clk
0:02:31.1]} 8... Kc8 {[%clk 0:03:00.9]} 9. Be2 {[%clk 0:02:31.4]} 9... Nd7
{[%clk 0:03:01]} 10. O-O {[%clk 0:02:31]} 10... f6 {[%clk 0:03:01.6]} 11. Bh4
{[%clk 0:02:30.3]} 11... a5 {[%clk 0:02:51]} 12. Rfd1 {[%clk 0:02:27.5]} 12...
a4 {[%clk 0:02:49.2]} 13. b3 {[%clk 0:02:25.1]} 13... Nc5 {[%clk 0:02:44.5]} 14.
b4 {[%clk 0:02:15.1]} 14... Nxb4 {[%clk 0:02:40]} 15. Rab1 {[%clk 0:02:10]}
15... Nc6 {[%clk 0:02:34.5]} 16. Nd5 {[%clk 0:02:06.6]} 16... Bf5 {[%clk
0:02:25.1]} 17. Rb5 {[%clk 0:01:49.2]} 17... a3 {[%clk 0:02:09]} 18. h3 {[%clk
0:01:14]} 18... Na4 {[%clk 0:02:02]} 19. g4 {[%clk 0:01:09.8]} 19... Be6 {[%clk
0:02:01]} 20. Rb3 {[%clk 0:01:08.4]} 20... Nb2 {[%clk 0:01:53.8]} 21. Rd2 {[%clk
0:00:56.4]} 21... h6 {[%clk 0:01:51.6]} 22. Ne1 {[%clk 0:00:38]} 22... Ra4
{[%clk 0:01:38.6]} 23. Nd3 {[%clk 0:00:25.9]} 23... Nxc4 {[%clk 0:01:35.8]} 24.
Rc2 {[%clk 0:00:22.9]} 24... Bxd5 {[%clk 0:01:34.9]} 25. Ne1 {[%clk 0:00:12.4]}
25... Nb6 {[%clk 0:01:23]} 26. Nd3 {[%clk 0:00:06.8]} 26... Bxb3 {[%clk
0:01:21.3]} 0-1

[Event "Early-Titled-Tuesday-Blitz-October-17-2023"]
[Site "Chess.com"]
[Date "2023.10.17"]
[Round "2"]
[White "GAusal"]
[Black "Langua_Chess"]
[Result "0-1"]
[WhiteElo "2272"]
[BlackElo "2506"]
[TimeControl "180+1"]
[EndTime "8:17:32 PDT"]
[Termination "Langua_Chess won by checkmate"]

1. d4 {[%clk 0:03:00.9]} 1... d5 {[%clk 0:02:59.5]} 2. Nf3 {[%clk 0:03:01.8]}
2... Bg4 {[%clk 0:02:58.2]} 3. Ne5 {[%clk 0:03:00.4]} 3... Bf5 {[%clk 0:02:58]}
4. g4 {[%clk 0:02:57.6]} 4... Be4 {[%clk 0:02:52.7]} 5. f3 {[%clk 0:02:55.2]}
5... e6 {[%clk 0:02:52.4]} 6. fxe4 {[%clk 0:02:52.6]} 6... Qh4+ {[%clk
0:02:50.6]} 7. Kd2 {[%clk 0:02:48]} 7... dxe4 {[%clk 0:02:46.4]} 8. c3 {[%clk
0:02:44.5]} 8... f6 {[%clk 0:02:35.1]} 9. Nc4 {[%clk 0:02:43.6]} 9... c5 {[%clk
0:02:13.4]} 10. Qb3 {[%clk 0:02:38]} 10... b6 {[%clk 0:01:44.3]} 11. Qb5+ {[%clk
0:02:32]} 11... Kf7 {[%clk 0:01:36.8]} 12. Kc2 {[%clk 0:02:05.4]} 12... Nh6
{[%clk 0:01:26.1]} 13. Bf4 {[%clk 0:02:00.2]} 13... Nxg4 {[%clk 0:01:16.5]} 14.
Bxb8 {[%clk 0:01:59.1]} 14... Rxb8 {[%clk 0:01:10.8]} 15. Qd7+ {[%clk
0:01:58.7]} 15... Be7 {[%clk 0:00:36.3]} 16. Nd6+ {[%clk 0:01:55]} 16... Kf8
{[%clk 0:00:36.9]} 17. Nxe4 {[%clk 0:01:53.2]} 17... Ne3+ {[%clk 0:00:29.2]} 18.
Kd3 {[%clk 0:01:46.3]} 18... Nd5 {[%clk 0:00:21.5]} 19. Qxe6 {[%clk 0:01:40.6]}
19... Nf4+ {[%clk 0:00:21.2]} 20. Kc2 {[%clk 0:01:37]} 20... Nxe6 {[%clk
0:00:21.8]} 21. Nbd2 {[%clk 0:01:33.8]} 21... cxd4 {[%clk 0:00:21.2]} 22. cxd4
{[%clk 0:01:32.8]} 22... Nxd4+ {[%clk 0:00:19.8]} 23. Kd3 {[%clk 0:01:29.3]}
23... Rd8 {[%clk 0:00:18.8]} 24. Nf3 {[%clk 0:01:27.6]} 24... Nxf3+ {[%clk
0:00:18.5]} 25. Ke3 {[%clk 0:01:22.7]} 25... Ne5 {[%clk 0:00:17.4]} 26. Bg2
{[%clk 0:01:21.9]} 26... Bc5+ {[%clk 0:00:15.2]} 27. Nxc5 {[%clk 0:01:17.1]}
27... Qd4# {[%clk 0:00:14.7]} 0-1

[Event "Early-Titled-Tuesday-Blitz-October-17-2023"]
[Site "Chess.com"]
[Date "2023.10.17"]
[Round "2"]
[White "faraone99"]
[Black "GMKrikor"]
[Result "0-1"]
[WhiteElo "2560"]
[BlackElo "2824"]
[TimeControl "180+1"]
[EndTime "8:17:35 PDT"]
[Termination "GMKrikor won by resignation"]

1. e4 {[%clk 0:03:00.9]} 1... e6 {[%clk 0:03:00.2]} 2. d4 {[%clk 0:02:59.8]}
2... d5 {[%clk 0:03:00.7]} 3. Nc3 {[%clk 0:02:59.8]} 3... Nf6 {[%clk 0:02:59.9]}
4. e5 {[%clk 0:03:00]} 4... Nfd7 {[%clk 0:03:00.4]} 5. f4 {[%clk 0:02:59.2]}
5... c5 {[%clk 0:03:01.1]} 6. Nf3 {[%clk 0:02:59.8]} 6... Nc6 {[%clk 0:03:01.5]}
7. Be3 {[%clk 0:03:00.2]} 7... a6 {[%clk 0:03:01.3]} 8. Qd2 {[%clk 0:02:59.1]}
8... b5 {[%clk 0:03:01.3]} 9. dxc5 {[%clk 0:02:55.8]} 9... Bxc5 {[%clk
0:03:01.8]} 10. Bxc5 {[%clk 0:02:55.2]} 10... Nxc5 {[%clk 0:03:02.7]} 11. Qf2
{[%clk 0:02:55.8]} 11... Qb6 {[%clk 0:03:03]} 12. Bd3 {[%clk 0:02:56.1]} 12...
b4 {[%clk 0:03:03.2]} 13. Ne2 {[%clk 0:02:55]} 13... a5 {[%clk 0:03:03.9]} 14.
h4 {[%clk 0:02:39.9]} 14... Ba6 {[%clk 0:03:03.1]} 15. Bxa6 {[%clk 0:02:39.8]}
15... Rxa6 {[%clk 0:03:04]} 16. h5 {[%clk 0:02:40]} 16... h6 {[%clk 0:03:02.6]}
17. Rh3 {[%clk 0:02:37.9]} 17... O-O {[%clk 0:02:56.8]} 18. g4 {[%clk
0:02:34.8]} 18... Ne4 {[%clk 0:02:52.2]} 19. Qxb6 {[%clk 0:02:34.4]} 19... Rxb6
{[%clk 0:02:53.1]} 20. Ned4 {[%clk 0:02:31.1]} 20... Rc8 {[%clk 0:02:51.3]} 21.
Rh2 {[%clk 0:02:26.2]} 21... a4 {[%clk 0:02:46.7]} 22. Nxc6 {[%clk 0:01:55.5]}
22... Rbxc6 {[%clk 0:02:42.8]} 23. Nd4 {[%clk 0:01:22.6]} 23... Rc4 {[%clk
0:02:42.7]} 24. O-O-O {[%clk 0:01:22.8]} 24... a3 {[%clk 0:02:43]} 25. Nb5
{[%clk 0:00:52.1]} 25... b3 {[%clk 0:01:54.1]} 26. bxa3 {[%clk 0:00:50.9]} 26...
bxa2 {[%clk 0:00:47.6]} 27. Kb2 {[%clk 0:00:50.4]} 27... Rb8 {[%clk 0:00:48.1]}
0-1

[Event "Early-Titled-Tuesday-Blitz-October-17-2023"]
[Site "Chess.com"]
[Date "2023.10.17"]
[Round "2"]
[White "LoydBlankenship"]
[Black "Msb2"]
[Result "0-1"]
[WhiteElo "2624"]
[BlackElo "3072"]
[TimeControl "180+1"]
[EndTime "8:17:38 PDT"]
[Termination "Msb2 won by resignation"]

1. e4 {[%clk 0:03:00.9]} 1... e6 {[%clk 0:03:00.2]} 2. d4 {[%clk 0:03:00.8]}
2... d5 {[%clk 0:03:01]} 3. Nc3 {[%clk 0:03:01]} 3... Nf6 {[%clk 0:03:01]} 4. e5
{[%clk 0:03:01.3]} 4... Nfd7 {[%clk 0:03:00.9]} 5. f4 {[%clk 0:03:02]} 5... c5
{[%clk 0:03:01.7]} 6. Nf3 {[%clk 0:03:02.6]} 6... Nc6 {[%clk 0:03:02.6]} 7. Be3
{[%clk 0:03:02.7]} 7... a6 {[%clk 0:03:03.5]} 8. Qd2 {[%clk 0:03:02.9]} 8... b5
{[%clk 0:03:04]} 9. dxc5 {[%clk 0:03:03.3]} 9... Bxc5 {[%clk 0:03:04.9]} 10.
Bxc5 {[%clk 0:03:03.7]} 10... Nxc5 {[%clk 0:03:05.8]} 11. Qf2 {[%clk 0:03:04.2]}
11... Qb6 {[%clk 0:03:05.8]} 12. Bd3 {[%clk 0:03:04.9]} 12... b4 {[%clk
0:03:06.2]} 13. Ne2 {[%clk 0:03:04.9]} 13... a5 {[%clk 0:03:06.9]} 14. O-O
{[%clk 0:03:04.6]} 14... Ba6 {[%clk 0:03:07.5]} 15. Rfd1 {[%clk 0:03:04.4]}
15... h6 {[%clk 0:03:05.6]} 16. Ned4 {[%clk 0:03:01.9]} 16... Ne4 {[%clk
0:03:01.8]} 17. Bxe4 {[%clk 0:02:56.2]} 17... dxe4 {[%clk 0:03:02.7]} 18. Nxc6
{[%clk 0:02:56.7]} 18... Qxc6 {[%clk 0:03:02.7]} 19. Rd6 {[%clk 0:02:56.1]}
19... Qc7 {[%clk 0:02:58]} 20. Nd4 {[%clk 0:02:51.9]} 20... O-O {[%clk
0:02:57.9]} 21. f5 {[%clk 0:02:51.1]} 21... exf5 {[%clk 0:02:49.2]} 22. Nxf5
{[%clk 0:02:50.4]} 22... Bc8 {[%clk 0:02:27.1]} 23. Nxh6+ {[%clk 0:01:34.8]}
23... gxh6 {[%clk 0:02:26.3]} 24. Qg3+ {[%clk 0:01:02.5]} 24... Kh7 {[%clk
0:02:25.6]} 25. Rf1 {[%clk 0:00:55.1]} 25... Be6 {[%clk 0:02:15.2]} 26. Rf6
{[%clk 0:00:45.6]} 26... Rg8 {[%clk 0:01:44.7]} 27. Qf4 {[%clk 0:00:42.7]} 27...
Rg6 {[%clk 0:01:22.1]} 28. Rxg6 {[%clk 0:00:28]} 28... Qa7+ {[%clk 0:01:19.2]}
29. Kh1 {[%clk 0:00:26.3]} 29... Kxg6 {[%clk 0:01:19.8]} 30. Qxe4+ {[%clk
0:00:23.5]} 30... Kg7 {[%clk 0:01:20.1]} 31. Qf4 {[%clk 0:00:21.7]} 31... Qe7
{[%clk 0:01:14.2]} 32. Rd8 {[%clk 0:00:21.3]} 32... Rxd8 {[%clk 0:01:13.1]} 33.
Qxh6+ {[%clk 0:00:22.2]} 33... Kxh6 {[%clk 0:01:13.3]} 0-1

[Event "Early-Titled-Tuesday-Blitz-October-17-2023"]
[Site "Chess.com"]
[Date "2023.10.17"]
[Round "2"]
[White "gmcorrales"]
[Black "sorch29"]
[Result "1-0"]
[WhiteElo "2880"]
[BlackElo "2403"]
[TimeControl "180+1"]
[EndTime "8:17:45 PDT"]
[Termination "gmcorrales won by resignation"]

1. e4 {[%clk 0:03:00.9]} 1... c5 {[%clk 0:03:00.1]} 2. Nf3 {[%clk 0:03:01.4]}
2... d6 {[%clk 0:02:59.7]} 3. d4 {[%clk 0:02:59.9]} 3... cxd4 {[%clk 0:03:00.6]}
4. Nxd4 {[%clk 0:03:00.7]} 4... Nf6 {[%clk 0:03:00.5]} 5. Nc3 {[%clk 0:03:00.7]}
5... Nc6 {[%clk 0:03:00.4]} 6. Bg5 {[%clk 0:02:50.3]} 6... e6 {[%clk 0:03:00.6]}
7. Qd2 {[%clk 0:02:47.1]} 7... Qb6 {[%clk 0:03:00.4]} 8. Bxf6 {[%clk 0:02:46.1]}
8... gxf6 {[%clk 0:02:59.6]} 9. Nb3 {[%clk 0:02:46.7]} 9... a6 {[%clk
0:02:58.5]} 10. g3 {[%clk 0:02:46.5]} 10... h5 {[%clk 0:02:57.8]} 11. h4 {[%clk
0:02:45.8]} 11... Ne5 {[%clk 0:02:23.2]} 12. Be2 {[%clk 0:02:20.5]} 12... Bd7
{[%clk 0:02:22.9]} 13. O-O-O {[%clk 0:02:18.6]} 13... Qxf2 {[%clk 0:02:09.9]}
14. Kb1 {[%clk 0:02:16.8]} 14... Be7 {[%clk 0:01:53.2]} 15. Rhf1 {[%clk
0:02:11.4]} 15... Qxg3 {[%clk 0:01:49.1]} 16. Qd4 {[%clk 0:02:07]} 16... Qxh4
{[%clk 0:01:35]} 17. Qb6 {[%clk 0:02:06.2]} 17... Bc6 {[%clk 0:01:23.1]} 18. Nd4
{[%clk 0:01:46.9]} 18... Nd7 {[%clk 0:00:44.9]} 19. Qb3 {[%clk 0:01:43.2]} 19...
Nc5 {[%clk 0:00:43.6]} 20. Qb6 {[%clk 0:01:42.1]} 20... Rc8 {[%clk 0:00:30.8]}
21. Nxc6 {[%clk 0:01:33.9]} 21... Rxc6 {[%clk 0:00:28.9]} 22. Qa7 {[%clk
0:01:33.1]} 22... Rc8 {[%clk 0:00:15.6]} 23. Bf3 {[%clk 0:01:19.9]} 23... Qg5
{[%clk 0:00:12.6]} 24. e5 {[%clk 0:01:14]} 24... fxe5 {[%clk 0:00:02.9]} 25.
Bxb7 {[%clk 0:01:13.3]} 25... Nxb7 {[%clk 0:00:03]} 26. Qxb7 {[%clk 0:01:14.2]}
26... Rd8 {[%clk 0:00:03.4]} 27. Ne4 {[%clk 0:01:14.6]} 27... d5 {[%clk
0:00:02]} 28. Nxg5 {[%clk 0:01:14.3]} 28... Bxg5 {[%clk 0:00:01.9]} 1-0